fUSD/lending_fUSD_20240109
["ID","MTS","AMOUNT","RATE_DAILY","PERIOD"]
[310974664,1704838267360,-500.0,0.00041178,30]
[310974665,1704838267370,-500.0,0.00041178,30]
[310974666,1704838267379,-500.0,0.00041178,30]
[310974667,1704838267389,-868.98,0.00041178,30]
[310974668,1704838267400,-500.0,0.00041178,30]
[310974669,1704838267409,-605.08,0.00041178,30]
[310974670,1704838267418,-793.55,0.00041178,30]
[310974671,1704838267428,-1000.0,0.00041178,10]
[310974672,1704838267438,-500.0,0.00041178,30]
[310974673,1704838267447,-586.7,0.00041178,30]
[310974674,1704838267458,-940.16,0.00041178,30]
[310974675,1704838267468,-339.42698396,0.00041178,30]
[310974676,1704838267477,-629.82,0.00041178,30]
[310974677,1704838267486,-500.0,0.00041178,30]
[310974678,1704838267495,-202.82116397,0.00041178,30]
[310974679,1704838267505,-826.1,0.00041178,30]
[310974680,1704838267515,-500.0,0.00041178,30]
[310974681,1704838267524,-672.75,0.00041178,30]
[310974682,1704838267533,-500.0,0.00041178,30]
[310974683,1704838267543,-500.0,0.00041178,30]
[310974684,1704838267555,-500.0,0.00041178,30]
[310974685,1704838267564,-500.0,0.00041178,30]
[310974686,1704838267574,-500.0,0.00041178,30]
[310974687,1704838267583,-500.0,0.00041178,30]
[310974688,1704838267593,-500.0,0.00041178,30]
[310974689,1704838267602,-1579.44,0.00041178,30]
[310974690,1704838267612,-913.61,0.00041178,30]
[310974691,1704838267622,-500.0,0.00041178,30]
[310974692,1704838267631,-500.0,0.00041178,30]
[310974693,1704838267641,-740.8,0.00041178,30]
[310974694,1704838267650,-500.0,0.00041178,30]
[310974695,1704838267660,-500.0,0.00041178,30]
[310974696,1704838267670,-1195.0,0.00041178,30]
[310974697,1704838267680,-500.0,0.00041178,30]
[310974698,1704838267690,-500.0,0.00041178,30]
[310974699,1704838267700,-500.0,0.00041178,30]
[310974700,1704838267709,-508.41510411,0.00041178,30]
[310974701,1704838267718,-500.0,0.00041178,30]
[310974702,1704838267728,-537.75,0.00041178,30]
[310974703,1704838267737,-500.0,0.00041178,30]
[310974704,1704838267747,-500.0,0.00041178,30]
[310974705,1704838267756,-500.0,0.00041178,30]
[310974706,1704838267766,-500.0,0.00041178,30]
[310974707,1704838267775,-500.0,0.00041178,30]
[310974708,1704838267785,-500.0,0.00041178,30]
[310974709,1704838267797,-758.11,0.00041178,30]
[310974710,1704838267807,-500.0,0.00041178,30]
[310974711,1704838267817,-1327.58,0.00041178,30]
[310974712,1704838267828,-500.0,0.00041178,30]
[310974713,1704838267838,-500.0,0.00041178,30]
[310974714,1704838267848,-500.0,0.00041178,30]
[310974715,1704838267857,-500.0,0.00041178,30]
[310974716,1704838267867,-500.0,0.00041178,30]
[310974717,1704838267877,-500.0,0.00041178,30]
[310974718,1704838267887,-500.0,0.00041178,30]
[310974719,1704838267897,-500.0,0.00041178,30]
[310974720,1704838267907,-500.0,0.00041178,30]
[310974721,1704838267917,-500.0,0.00041178,30]
[310974722,1704838267927,-526.19,0.00041178,30]
[310974723,1704838267937,-500.0,0.00041178,30]
[310974724,1704838267948,-500.0,0.00041178,30]
[310974725,1704838267958,-500.0,0.00041178,30]
[310974726,1704838267968,-500.0,0.00041178,30]
[310974727,1704838267978,-500.0,0.00041178,30]
[310974728,1704838267989,-1553.12,0.00041178,30]
[310974729,1704838267999,-500.0,0.00041178,30]
[310974730,1704838268009,-627.74,0.00041178,30]
[310974731,1704838268019,-500.0,0.00041178,30]
[310974732,1704838268028,-500.0,0.00041178,30]
[310974733,1704838268038,-514.9441414,0.00041178,30]
[310974734,1704838268050,-500.0,0.00041178,30]
[310974735,1704838268060,-813.03,0.00041178,30]
[310974736,1704838268070,-500.0,0.00041178,30]
[310974737,1704838268080,-500.0,0.00041178,30]
[310974738,1704838268090,-334.92424696,0.00041178,30]
[310974739,1704838268101,-500.0,0.00041178,30]
[310974740,1704838268111,-1218.54,0.00041178,30]
[310974741,1704838268121,-500.0,0.00041178,30]
[310974742,1704838268131,-508.28185368,0.00041178,30]
[310974743,1704838268145,-500.0,0.00041178,30]
[310974744,1704838268155,-930.98,0.00041178,30]
[310974745,1704838268165,-500.0,0.00041178,30]
[310974746,1704838268175,-500.0,0.00041178,30]
[310974747,1704838268185,-500.0,0.00041178,30]
[310974748,1704838268195,-500.0,0.00041178,30]
[310974749,1704838268206,-528.15,0.00041178,30]
[310974750,1704838268216,-778.06,0.00041178,30]
[310974751,1704838268228,-500.0,0.00041178,30]
[310974752,1704838268240,-500.0,0.00041178,30]
[310974753,1704838268250,-750.76,0.00041178,30]
[310974754,1704838268260,-567.52771254,0.00041178,30]
[310974755,1704838268270,-500.0,0.00041178,30]
[310974756,1704838268281,-500.0,0.00041178,30]
[310974757,1704838268292,-630.23,0.00041178,30]
[310974758,1704838268304,-1131.88,0.00041178,30]
[310974759,1704838268317,-1105.98,0.00041178,30]
[310974760,1704838268327,-500.0,0.00041178,30]
[310974761,1704838268337,-1116.21,0.00041178,30]
[310974762,1704838268347,-565.46,0.00041178,30]
[310974763,1704838268357,-440.43309162,0.00041178,30]
[310974764,1704838268367,-500.0,0.00041178,30]
[310974765,1704838268381,-326.78981685,0.00041178,30]
[310974766,1704838268391,-500.0,0.00041178,30]
[310974767,1704838268401,-500.0,0.00041178,30]
[310974768,1704838268411,-1638.68,0.00041178,30]
[310974769,1704838268422,-500.0,0.00041178,30]
[310974770,1704838268431,-798.11,0.00041178,30]
[310974771,1704838268441,-500.0,0.00041178,30]
[310974772,1704838268451,-500.0,0.00041178,30]
[310974773,1704838268461,-500.0,0.00041178,30]
[310974774,1704838268472,-631.35,0.00041178,30]
[310974775,1704838268482,-500.0,0.00041178,30]
[310974776,1704838268492,-1492.74,0.00041178,30]
[310974777,1704838268502,-802.75,0.00041178,30]
[310974778,1704838268512,-500.0,0.00041178,30]
[310974779,1704838268522,-242.84555456,0.00041178,30]
[310974780,1704838268532,-500.0,0.00041178,30]
[310974781,1704838268542,-500.0,0.00041178,30]
[310974782,1704838268556,-500.0,0.00041178,30]
[310974783,1704838268566,-1391.21,0.00041178,30]
[310974784,1704838268576,-500.0,0.00041178,30]
[310974785,1704838268586,-789.67,0.00041178,30]
[310974786,1704838268596,-500.0,0.00041178,30]
[310974787,1704838268606,-500.0,0.00041178,30]
[310974788,1704838268617,-800.32,0.00041178,30]
[310974789,1704838268627,-525.86,0.00041178,30]
[310974790,1704838268638,-603.33,0.00041178,30]
[310974791,1704838268648,-608.68,0.00041178,30]
[310974792,1704838268658,-1077.3,0.00041178,30]
[310974793,1704838268669,-500.0,0.00041178,7]
[310974794,1704838268679,-541.71902057,0.00041178,30]
[310974795,1704838268689,-669.59,0.00041178,30]
[310974796,1704838268701,-500.0,0.00041178,30]
[310974797,1704838268711,-500.0,0.00041178,30]
[310974798,1704838268721,-500.0,0.00041178,30]
[310974799,1704838268732,-500.0,0.00041178,30]
[310974800,1704838268742,-936.91,0.00041178,30]
[310974801,1704838268753,-500.0,0.00041178,30]
[310974802,1704838268763,-250.0,0.00041178,30]
[310974803,1704838268773,-500.0,0.00041178,30]
[310974804,1704838268784,-1709.05,0.00041178,30]
[310974805,1704838268794,-500.0,0.00041178,30]
[310974806,1704838268806,-500.0,0.00041178,30]
[310974807,1704838268816,-500.0,0.00041178,30]
[310974808,1704838268827,-500.0,0.00041178,30]
[310974809,1704838268837,-500.0,0.00041178,30]
[310974810,1704838268848,-1041.32,0.00041178,30]
[310974811,1704838268859,-509.62,0.00041178,30]
[310974812,1704838268870,-500.0,0.00041178,30]
[310974813,1704838268881,-500.0,0.00041178,30]
[310974814,1704838268892,-500.0,0.00041178,30]
[310974815,1704838268902,-500.0,0.00041178,30]
[310974816,1704838268913,-500.0,0.00041178,30]
[310974817,1704838268923,-827.64,0.00041178,30]
[310974818,1704838268934,-500.0,0.00041178,30]
[310974819,1704838268944,-5000.0,0.00041178,14]
[310974820,1704838268954,-500.0,0.00041178,30]
[310974821,1704838268964,-177.93296082,0.00041178,30]
[310974822,1704838268974,-500.0,0.00041178,30]
[310974823,1704838268984,-408.2198676,0.00041178,30]
[310974824,1704838268994,-500.0,0.00041178,30]
[310974825,1704838269005,-1164.73,0.00041178,30]
[310974826,1704838269015,-840.51,0.00041178,30]
[310974827,1704838269025,-500.0,0.00041178,30]
[310974828,1704838269035,-500.0,0.00041178,30]
[310974829,1704838269045,-500.0,0.00041178,30]
[310974830,1704838269055,-500.0,0.00041178,30]
[310974831,1704838269066,-511.73,0.00041178,30]
[310974832,1704838269076,-500.0,0.00041178,30]
[310974833,1704838269086,-516.06,0.00041178,30]
[310974834,1704838269096,-500.0,0.00041178,30]
[310974835,1704838269106,-500.0,0.00041178,30]
[310974836,1704838269117,-500.0,0.00041178,30]
[310974837,1704838269127,-500.0,0.00041178,30]
[310974838,1704838269138,-500.0,0.00041178,30]
[310974839,1704838269148,-500.0,0.00041178,30]
[310974840,1704838269158,-510.19,0.00041178,30]
[310974841,1704838269169,-175.50436398,0.00041178,30]
[310974842,1704838269179,-500.0,0.00041178,30]
[310974843,1704838269190,-500.0,0.00041178,30]
[310974844,1704838269203,-500.0,0.00041178,30]
[310974845,1704838269214,-1092.61,0.00041178,30]
[310974846,1704838269224,-500.0,0.00041178,30]
[310974847,1704838269235,-500.0,0.00041178,30]
[310974848,1704838269245,-500.0,0.00041178,30]
[310974849,1704838269255,-500.0,0.00041178,10]
[310974850,1704838269266,-500.0,0.00041178,30]
[310974851,1704838269276,-500.0,0.00041178,30]
[310974852,1704838269286,-508.98533105,0.00041178,30]
[310974853,1704838269297,-500.0,0.00041178,30]
[310974854,1704838269307,-500.0,0.00041178,30]
[310974855,1704838269318,-500.0,0.00041178,30]
[310974856,1704838269327,-500.0,0.00041178,30]
[310974857,1704838269338,-500.0,0.00041178,30]
[310974858,1704838269348,-500.0,0.00041178,30]
[310974859,1704838269358,-500.0,0.00041178,30]
[310974860,1704838269368,-500.0,0.00041178,30]
[310974861,1704838269379,-500.0,0.00041178,30]
[310974862,1704838269389,-1360.4,0.00041178,30]
[310974863,1704838269399,-500.0,0.00041178,30]
[310974864,1704838269409,-1761.96,0.00041178,30]
[310974865,1704838269419,-704.3,0.00041178,30]
[310974866,1704838269429,-500.0,0.00041178,30]
[310974867,1704838269439,-500.0,0.00041178,30]
[310974868,1704838269449,-500.0,0.00041178,30]
[310974869,1704838269460,-500.0,0.00041178,30]
[310974870,1704838269470,-500.0,0.00041178,30]
[310974871,1704838269480,-943.22,0.00041178,30]
[310974872,1704838269490,-861.7,0.00041178,30]
[310974873,1704838269501,-699.02,0.00041178,30]
[310974874,1704838269511,-826.82,0.00041178,30]
[310974875,1704838269521,-500.0,0.00041178,30]
[310974876,1704838269531,-500.0,0.00041178,30]
[310974877,1704838269542,-500.0,0.00041178,30]
[310974878,1704838269554,-594.11,0.00041178,30]
[310974879,1704838269564,-500.0,0.00041178,30]
[310974880,1704838269575,-500.0,0.00041178,30]
[310974881,1704838269585,-1067.02,0.00041178,30]
[310974882,1704838269596,-269.61906255,0.00041178,30]
[310974883,1704838269606,-500.0,0.00041178,30]
[310974884,1704838269617,-500.0,0.00041178,30]
[310974885,1704838269628,-510.36,0.00041178,30]
[310974886,1704838269639,-500.0,0.00041178,30]
[310974887,1704838269652,-500.0,0.00041178,30]
[310974888,1704838269663,-500.0,0.00041178,2]
[310974889,1704838269675,-500.0,0.00041178,30]
[310974890,1704838269686,-500.0,0.00041178,30]
[310974891,1704838269698,-500.0,0.00041178,30]
[310974892,1704838269710,-2016.86,0.00041178,30]
[310974893,1704838269721,-161.42768989,0.00041178,30]
[310974894,1704838269735,-500.0,0.00041178,30]
[310974895,1704838269746,-500.0,0.00041178,30]
[310974896,1704838269759,-500.0,0.00041178,30]
[310974897,1704838269770,-500.0,0.00041178,30]
[310974898,1704838269780,-500.0,0.00041178,30]
[310974899,1704838269792,-500.0,0.00041178,30]
[310974900,1704838269809,-1173.29,0.00041178,30]
[310974901,1704838269820,-591.37,0.00041178,30]
[310974902,1704838269831,-500.0,0.00041178,30]
[310974903,1704838269842,-862.87,0.00041178,30]
[310974904,1704838269853,-500.0,0.00041178,30]
[310974905,1704838269865,-1728.77,0.00041178,30]
[310974906,1704838269876,-500.0,0.00041178,30]
[310974907,1704838269887,-500.0,0.00041178,30]
[310974908,1704838269898,-500.0,0.00041178,30]
[310974909,1704838269909,-1603.78,0.00041178,30]
[310974910,1704838269920,-506.6,0.00041178,30]
[310974911,1704838269931,-500.0,0.00041178,30]
[310974912,1704838269941,-691.21,0.00041178,30]
[310974913,1704838269952,-500.0,0.00041178,30]
[310974914,1704838269962,-500.0,0.00041178,30]
[310974915,1704838269973,-500.0,0.00041178,30]
[310974916,1704838269984,-500.0,0.00041178,30]
[310974917,1704838269995,-500.0,0.00041178,30]
[310974918,1704838270007,-500.0,0.00041178,30]
[310974919,1704838270017,-616.24,0.00041178,30]
[310974920,1704838270027,-609.19758351,0.00041178,30]
[310974921,1704838270038,-926.22,0.00041178,30]
[310974922,1704838270050,-500.0,0.00041178,30]
[310974923,1704838270060,-500.0,0.00041178,30]
[310974924,1704838270070,-686.18,0.00041178,30]
[310974925,1704838270080,-663.05,0.00041178,30]
[310974926,1704838270091,-151.30394955,0.00041178,30]
[310974927,1704838270101,-500.0,0.00041178,30]
[310974928,1704838270112,-500.0,0.00041178,30]
[310974929,1704838270122,-500.0,0.00041178,30]
[310974930,1704838270132,-500.0,0.00041178,30]
[310974931,1704838270143,-796.05,0.00041178,30]
[310974932,1704838270153,-988.23,0.00041178,30]
[310974933,1704838270164,-605.45,0.00041178,6]
[310974934,1704838270174,-1356.8,0.00041178,30]
[310974935,1704838270185,-500.0,0.00041178,30]
[310974936,1704838270197,-500.0,0.00041178,30]
[310974937,1704838270208,-514.19,0.00041178,30]
[310974938,1704838270220,-711.06,0.00041178,30]
[310974939,1704838270231,-500.0,0.00041178,30]
[310974940,1704838270564,-1957.66,0.00041178,30]
[310974941,1704838270576,-683.33,0.00041178,30]
[310974942,1704838270587,-500.0,0.00041178,30]
[310974943,1704838270597,-500.0,0.00041178,30]
[310974944,1704838270609,-803.13,0.00041178,30]
[310974945,1704838270619,-500.0,0.00041178,30]
[310974946,1704838270628,-1229.9,0.00041178,30]
[310974947,1704838270638,-500.0,0.00041178,30]
[310974948,1704838270647,-500.0,0.00041178,30]
[310974949,1704838270657,-500.0,0.00041178,30]
[310974950,1704838270666,-500.0,0.00041178,30]
[310974951,1704838270675,-816.32,0.00041178,30]
[310974952,1704838270684,-555.56,0.00041178,30]
[310974953,1704838270693,-651.53,0.00041178,30]
[310974954,1704838270703,-627.3,0.00041178,30]
[310974955,1704838270713,-500.0,0.00041178,30]
[310974956,1704838270723,-500.0,0.00041178,30]
[310974957,1704838270733,-500.0,0.00041178,30]
[310974958,1704838270743,-500.0,0.00041178,30]
[310974959,1704838270753,-688.6,0.00041178,30]
[310974960,1704838270763,-500.0,0.00041178,30]
[310974961,1704838270773,-572.21,0.00041178,30]
[310974962,1704838270782,-500.0,0.00041178,30]
[310974963,1704838270792,-500.0,0.00041178,30]
[310974964,1704838270810,-500.0,0.00041178,30]
[310974965,1704838270820,-500.0,0.00041178,30]
[310974966,1704838270830,-500.0,0.00041178,30]
[310974967,1704838270841,-500.0,0.00041178,30]
[310974968,1704838270852,-500.0,0.00041178,30]
[310974969,1704838270862,-1308.0,0.00041178,30]
[310974970,1704838270872,-500.0,0.00041178,30]
[310974971,1704838270882,-504.92828427,0.00041178,30]
[310974972,1704838270893,-500.0,0.00041178,30]
[310974973,1704838270903,-500.0,0.00041178,30]
[310974974,1704838270913,-500.0,0.00041178,30]
[310974975,1704838270923,-500.0,0.00041178,30]
[310974976,1704838270934,-633.27,0.00041178,30]
[310974977,1704838270943,-500.0,0.00041178,30]
[310974978,1704838270953,-886.58,0.00041178,30]
[310974979,1704838270963,-1462.94,0.00041178,30]
[310974980,1704838270974,-500.0,0.00041178,30]
[310974981,1704838270983,-500.0,0.00041178,30]
[310974982,1704838270994,-500.0,0.00041178,30]
[310974983,1704838271004,-500.0,0.00041178,30]
[310974984,1704838271015,-500.0,0.00041178,30]
[310974985,1704838271025,-500.0,0.00041178,30]
[310974986,1704838271036,-500.0,0.00041178,30]
[310974987,1704838271046,-500.0,0.00041178,30]
[310974988,1704838271061,-500.0,0.00041178,30]
[310974989,1704838271071,-500.0,0.00041178,30]
[310974990,1704838271080,-500.0,0.00041178,30]
[310974991,1704838271090,-727.24,0.00041178,30]
[310974992,1704838271099,-500.0,0.00041178,30]
[310974993,1704838271109,-500.0,0.00041178,8]
[310974994,1704838271119,-500.0,0.00041178,30]
[310974995,1704838271128,-500.0,0.00041178,30]
[310974996,1704838271138,-500.0,0.00041178,30]
[310974997,1704838271147,-1000.0,0.00041178,7]
[310974998,1704838271157,-500.0,0.00041178,30]
[310974999,1704838271166,-1914.86,0.00041178,30]
[310975000,1704838271176,-601.88,0.00041178,30]
[310975001,1704838271186,-500.0,0.00041178,30]
[310975002,1704838271195,-500.0,0.00041178,30]
[310975003,1704838271205,-500.0,0.00041178,30]
[310975004,1704838271215,-580.89,0.00041178,30]
[310975005,1704838271224,-500.0,0.00041178,30]
[310975006,1704838271246,-915.42,0.00041178,30]
[310975007,1704838271256,-545.07,0.00041178,30]
[310975008,1704838271266,-500.0,0.00041178,30]
[310975009,1704838271275,-500.0,0.00041178,30]
[310975010,1704838271285,-829.5,0.00041178,30]
[310975011,1704838271295,-695.09,0.00041178,30]
[310975012,1704838271309,-508.88,0.00041178,30]
[310975013,1704838271319,-615.92116549,0.00041178,30]
[310975014,1704838271328,-500.0,0.00041178,30]
[310975015,1704838271338,-935.65,0.00041178,30]
[310975016,1704838271347,-500.0,0.00041178,30]
[310975017,1704838271357,-588.03,0.00041178,30]
[310975018,1704838271367,-610.47,0.00041178,30]
[310975019,1704838271376,-312.54688722,0.00041178,30]
[310975020,1704838271386,-844.75,0.00041178,30]
[310975021,1704838271395,-1122.31,0.00041178,30]
[310975022,1704838271405,-500.0,0.00041178,30]
[310975023,1704838271415,-500.0,0.00041178,30]
[310975024,1704838271424,-223.65912273,0.00041178,30]
[310975025,1704838271433,-510.25284844,0.00041178,30]
[310975026,1704838271443,-500.0,0.00041178,30]
[310975027,1704838271453,-742.19,0.00041178,30]
[310975028,1704838271463,-502.71,0.00041178,30]
[310975029,1704838271473,-560.21947752,0.00041178,30]
[310975030,1704838271482,-500.0,0.00041178,30]
[310975031,1704838271492,-500.0,0.00041178,30]
[310975032,1704838271502,-500.0,0.00041178,30]
[310975033,1704838271511,-500.0,0.00041178,30]
[310975034,1704838271521,-830.81,0.00041178,30]
[310975035,1704838271530,-500.0,0.00041178,30]
[310975036,1704838271539,-654.63,0.00041178,30]
[310975037,1704838271552,-500.0,0.00041178,30]
[310975038,1704838271561,-500.0,0.00041178,30]
[310975039,1704838271571,-514.17,0.00041178,30]
[310975040,1704838271580,-919.89,0.00041178,30]
[310975041,1704838271589,-500.0,0.00041178,30]
[310975042,1704838271599,-500.0,0.00041178,30]
[310975043,1704838271608,-500.0,0.00041178,30]
[310975044,1704838271618,-500.0,0.00041178,30]
[310975045,1704838271629,-500.0,0.00041178,30]
[310975046,1704838271638,-531.58068078,0.00041178,30]
[310975047,1704838271648,-400.98296563,0.00041178,30]
[310975048,1704838271657,-1129.63,0.00041178,30]
[310975049,1704838271667,-500.0,0.00041178,30]
[310975050,1704838271676,-500.0,0.00041178,30]
[310975051,1704838271687,-500.0,0.00041178,30]
[310975052,1704838271696,-500.0,0.00041178,30]
[310975053,1704838271706,-500.0,0.00041178,30]
[310975054,1704838271716,-500.0,0.00041178,30]
[310975055,1704838271726,-613.36,0.00041178,30]
[310975056,1704838271736,-500.0,0.00041178,30]
[310975057,1704838271746,-500.0,0.00041178,30]
[310975058,1704838271755,-666.21,0.00041178,30]
[310975059,1704838271765,-638.54,0.00041178,30]
[310975060,1704838271775,-500.0,0.00041178,30]
[310975061,1704838271784,-663.01,0.00041178,30]
[310975062,1704838271794,-500.0,0.00041178,30]
[310975063,1704838271807,-853.39,0.00041178,30]
[310975064,1704838271817,-411.19068573,0.00041178,30]
[310975065,1704838271826,-500.0,0.00041178,30]
[310975066,1704838271836,-500.0,0.00041178,2]
[310975067,1704838271845,-557.76,0.00041178,30]
[310975068,1704838271855,-715.94,0.00041178,30]
[310975069,1704838271865,-500.0,0.00041178,30]
[310975070,1704838271874,-500.0,0.00041178,30]
[310975071,1704838271883,-500.0,0.00041178,30]
[310975072,1704838271893,-500.0,0.00041178,30]
[310975073,1704838271902,-500.0,0.00041178,30]
[310975074,1704838271912,-500.0,0.00041178,30]
[310975075,1704838271922,-500.0,0.00041178,30]
[310975076,1704838271931,-500.0,0.00041178,30]
[310975077,1704838271941,-1200.54,0.00041178,30]
[310975078,1704838271950,-500.0,0.00041178,30]
[310975079,1704838271959,-500.0,0.00041178,30]
[310975080,1704838271969,-500.0,0.00041178,30]
[310975081,1704838271978,-500.0,0.00041178,30]
[310975082,1704838271988,-500.0,0.00041178,30]
[310975083,1704838271999,-500.0,0.00041178,30]
[310975084,1704838272009,-500.0,0.00041178,30]
[310975085,1704838272019,-805.96,0.00041178,30]
[310975086,1704838272028,-500.0,0.00041178,30]
[310975087,1704838272038,-500.0,0.00041178,30]
[310975088,1704838272049,-500.0,0.00041178,30]
[310975089,1704838272059,-500.0,0.00041178,30]
[310975090,1704838272069,-500.0,0.00041178,30]
[310975091,1704838272079,-500.0,0.00041178,30]
[310975092,1704838272088,-534.28,0.00041178,30]
[310975093,1704838272098,-500.0,0.00041178,30]
[310975094,1704838272107,-500.0,0.00041178,30]
[310975095,1704838272117,-771.52,0.00041178,30]
[310975096,1704838272127,-500.0,0.00041178,30]
[310975097,1704838272136,-500.0,0.00041178,30]
[310975098,1704838272145,-500.0,0.00041178,30]
[310975099,1704838272154,-500.0,0.00041178,30]
[310975100,1704838272163,-975.47,0.00041178,30]
[310975101,1704838272173,-711.66,0.00041178,30]
[310975102,1704838272182,-500.0,0.00041178,7]
[310975103,1704838272192,-500.0,0.00041178,30]
[310975104,1704838272201,-500.0,0.00041178,30]
[310975105,1704838272211,-500.0,0.00041178,30]
[310975106,1704838272221,-717.43,0.00041178,30]
[310975107,1704838272231,-500.0,0.00041178,30]
[310975108,1704838272243,-500.0,0.00041178,30]
[310975109,1704838272253,-500.0,0.00041178,30]
[310975110,1704838272263,-500.0,0.00041178,30]
[310975111,1704838272272,-500.0,0.00041178,30]
[310975112,1704838272282,-500.0,0.00041178,30]
[310975113,1704838272292,-1000.0,0.00041178,30]
[310975114,1704838272304,-500.0,0.00041178,30]
[310975115,1704838272314,-500.0,0.00041178,30]
[310975116,1704838272324,-500.0,0.00041178,30]
[310975117,1704838272334,-811.72,0.00041178,30]
[310975118,1704838272344,-500.0,0.00041178,30]
[310975119,1704838272354,-1470.07,0.00041178,30]
[310975120,1704838272363,-1184.23,0.00041178,30]
[310975121,1704838272372,-500.0,0.00041178,30]
[310975122,1704838272382,-500.0,0.00041178,30]
[310975123,1704838272391,-500.0,0.00041178,30]
[310975124,1704838272400,-500.0,0.00041178,7]
[310975125,1704838272409,-546.94,0.00041178,30]
[310975126,1704838272419,-500.0,0.00041178,30]
[310975127,1704838272429,-500.0,0.00041178,30]
[310975128,1704838272439,-500.0,0.00041178,30]
[310975129,1704838272449,-500.0,0.00041178,30]
[310975130,1704838272458,-425.01229042,0.00041178,30]
[310975131,1704838272468,-500.0,0.00041178,30]
[310975132,1704838272478,-514.97,0.00041178,30]
[310975133,1704838272487,-554.43,0.00041178,30]
[310975134,1704838272496,-500.0,0.00041178,30]
[310975135,1704838272505,-500.0,0.00041178,30]
[310975136,1704838272515,-693.86,0.00041178,30]
[310975137,1704838272524,-926.72,0.00041178,30]
[310975138,1704838272533,-500.0,0.00041178,30]
[310975139,1704838272543,-948.49,0.00041178,30]
[310975140,1704838272554,-500.0,0.00041178,30]
[310975141,1704838272563,-500.0,0.00041178,30]
[310975142,1704838272572,-531.61248587,0.00041178,30]
[310975143,1704838272582,-179.87202353,0.00041178,2]
[310975144,1704838272593,-500.0,0.00041178,30]
[310975145,1704838272602,-500.0,0.00041178,30]
[310975146,1704838272612,-500.0,0.00041178,30]
[310975147,1704838272622,-948.28,0.00041178,30]
[310975148,1704838272631,-563.2,0.00041178,30]
[310975149,1704838272641,-616.48427044,0.00041178,30]
[310975150,1704838272650,-1417.25,0.00041178,30]
[310975151,1704838272660,-882.71,0.00041178,30]
[310975152,1704838272670,-500.0,0.00041178,30]
[310975153,1704838272681,-500.0,0.00041178,30]
[310975154,1704838272690,-686.66,0.00041178,30]
[310975155,1704838272700,-500.0,0.00041178,30]
[310975156,1704838272709,-500.0,0.00041178,30]
[310975157,1704838272719,-500.0,0.00041178,30]
[310975158,1704838272728,-766.36,0.00041178,30]
[310975159,1704838272738,-1150.95,0.00041178,30]
[310975160,1704838272747,-500.0,0.00041178,30]
[310975161,1704838272756,-1076.63,0.00041178,30]
[310975162,1704838272766,-500.0,0.00041178,30]
[310975163,1704838272775,-500.0,0.00041178,30]